[Event "Early-Titled-Tuesday-Blitz-March-19-2024"]
[Site "Chess.com"]
[Date "2024.03.19"]
[Round "11"]
[White "kikoveiga"]
[Black "Pumpkin_in_moonlight"]
[Result "1-0"]
[WhiteElo "2546"]
[BlackElo "2212"]
[TimeControl "180+1"]
[EndTime "10:06:20 PDT"]
[Termination "kikoveiga won by resignation"]

1. e4 {[%clk 0:03:00.9]} 1... c5 {[%clk 0:02:59]} 2. Nf3 {[%clk 0:02:50.8]} 2...
d6 {[%clk 0:02:59.2]} 3. c3 {[%clk 0:02:43.4]} 3... Nc6 {[%clk 0:02:33.1]} 4. h3
{[%clk 0:02:41.6]} 4... Nf6 {[%clk 0:02:31.3]} 5. Bd3 {[%clk 0:02:33.8]} 5... g6
{[%clk 0:02:30.3]} 6. O-O {[%clk 0:02:33]} 6... Bg7 {[%clk 0:02:30.2]} 7. Re1
{[%clk 0:02:29.9]} 7... O-O {[%clk 0:02:29.6]} 8. Bc2 {[%clk 0:02:29.3]} 8... b6
{[%clk 0:01:56.8]} 9. d4 {[%clk 0:02:30.2]} 9... cxd4 {[%clk 0:01:52.8]} 10.
cxd4 {[%clk 0:02:31.1]} 10... Bb7 {[%clk 0:01:51.9]} 11. Nc3 {[%clk 0:02:31.2]}
11... Rc8 {[%clk 0:01:39.5]} 12. Bg5 {[%clk 0:02:30.7]} 12... h6 {[%clk
0:01:34.5]} 13. Bh4 {[%clk 0:02:28.7]} 13... g5 {[%clk 0:01:27.9]} 14. Bg3
{[%clk 0:02:27.3]} 14... d5 {[%clk 0:01:28.2]} 15. e5 {[%clk 0:02:24.5]} 15...
Nh5 {[%clk 0:01:13.9]} 16. Qd3 {[%clk 0:02:23.8]} 16... Re8 {[%clk 0:01:12.1]}
17. Qh7+ {[%clk 0:02:20.9]} 17... Kf8 {[%clk 0:01:12.2]} 18. Bh2 {[%clk
0:01:41.3]} 18... e6 {[%clk 0:01:05.8]} 19. Ne2 {[%clk 0:01:07.7]} 19... Nb4
{[%clk 0:00:59.2]} 20. Bb1 {[%clk 0:01:07.3]} 20... Ke7 {[%clk 0:00:54.1]} 21.
Ng3 {[%clk 0:00:28.9]} 21... Rh8 {[%clk 0:00:50.6]} 22. Nxh5 {[%clk 0:00:29.2]}
22... Rxh7 {[%clk 0:00:49.9]} 23. Bxh7 {[%clk 0:00:30.1]} 23... Bh8 {[%clk
0:00:46]} 24. a3 {[%clk 0:00:27]} 24... Nc6 {[%clk 0:00:42]} 25. Bd3 {[%clk
0:00:26.4]} 25... Na5 {[%clk 0:00:40.1]} 26. Rac1 {[%clk 0:00:23.1]} 26... Nc4
{[%clk 0:00:33.1]} 27. Rc2 {[%clk 0:00:21.9]} 27... a5 {[%clk 0:00:26.9]} 28.
Rec1 {[%clk 0:00:21.7]} 28... b5 {[%clk 0:00:23.4]} 29. Ng3 {[%clk 0:00:20]}
29... f6 {[%clk 0:00:21.5]} 30. Ne2 {[%clk 0:00:18.2]} 30... fxe5 {[%clk
0:00:19.4]} 31. dxe5 {[%clk 0:00:19.1]} 31... d4 {[%clk 0:00:17]} 32. Nfxd4
{[%clk 0:00:13.5]} 32... Nxe5 {[%clk 0:00:16.7]} 33. Rxc8 {[%clk 0:00:13]} 33...
Bxc8 {[%clk 0:00:07]} 34. Bxe5 {[%clk 0:00:13.2]} 34... Kf8 {[%clk 0:00:04.6]}
35. Bxh8 {[%clk 0:00:12]} 35... Bb7 {[%clk 0:00:04.8]} 36. Nxe6+ {[%clk
0:00:11.4]} 1-0

[Event "Early-Titled-Tuesday-Blitz-March-19-2024"]
[Site "Chess.com"]
[Date "2024.03.19"]
[Round "11"]
[White "FairChess_on_YouTube"]
[Black "Firouzja2003"]
[Result "1-0"]
[WhiteElo "3147"]
[BlackElo "3100"]
[TimeControl "180+1"]
[EndTime "10:06:24 PDT"]
[Termination "FairChess_on_YouTube won by resignation"]

1. d4 {[%clk 0:03:00.9]} 1... Nf6 {[%clk 0:02:59.2]} 2. c4 {[%clk 0:03:01.2]}
2... g6 {[%clk 0:02:56.2]} 3. Nc3 {[%clk 0:03:01.3]} 3... Bg7 {[%clk 0:02:57]}
4. e4 {[%clk 0:03:01.2]} 4... d6 {[%clk 0:02:57.7]} 5. h3 {[%clk 0:03:01.5]}
5... Nbd7 {[%clk 0:02:55.2]} 6. Bd3 {[%clk 0:02:57.3]} 6... e5 {[%clk
0:02:55.2]} 7. d5 {[%clk 0:02:57.3]} 7... Nc5 {[%clk 0:02:52.8]} 8. Bc2 {[%clk
0:02:57.6]} 8... a5 {[%clk 0:02:53.1]} 9. Be3 {[%clk 0:02:57.3]} 9... h5 {[%clk
0:02:51.8]} 10. Qd2 {[%clk 0:02:56.2]} 10... Bd7 {[%clk 0:02:50.4]} 11. Nf3
{[%clk 0:02:49.8]} 11... c6 {[%clk 0:02:29.8]} 12. O-O {[%clk 0:02:41.3]} 12...
cxd5 {[%clk 0:02:28.1]} 13. cxd5 {[%clk 0:02:40.8]} 13... Rc8 {[%clk 0:02:25]}
14. a3 {[%clk 0:02:32.8]} 14... O-O {[%clk 0:02:16.5]} 15. Rfe1 {[%clk
0:02:22.3]} 15... b5 {[%clk 0:02:10.8]} 16. b4 {[%clk 0:02:14.4]} 16... Na6
{[%clk 0:02:11.5]} 17. Na2 {[%clk 0:02:03.5]} 17... axb4 {[%clk 0:01:59.2]} 18.
axb4 {[%clk 0:02:04.4]} 18... Nh7 {[%clk 0:01:44.5]} 19. Nc1 {[%clk 0:01:49.2]}
19... Nxb4 {[%clk 0:01:21.8]} 20. Bb3 {[%clk 0:01:47.5]} 20... f5 {[%clk
0:00:58.1]} 21. Qxb4 {[%clk 0:01:46]} 21... f4 {[%clk 0:00:56.3]} 22. Bd2 {[%clk
0:01:40.9]} 22... Rf6 {[%clk 0:00:15.2]} 23. Nd3 {[%clk 0:01:22.7]} 23... g5
{[%clk 0:00:12.3]} 24. Ra7 {[%clk 0:01:15.7]} 24... Be8 {[%clk 0:00:04.8]} 25.
Nfxe5 {[%clk 0:01:13.6]} 25... dxe5 {[%clk 0:00:05.7]} 26. Nxe5 {[%clk
0:01:13.7]} 26... Rd6 {[%clk 0:00:01.8]} 27. Bc3 {[%clk 0:00:58.3]} 27... Rc7
{[%clk 0:00:02.3]} 28. Nc6 {[%clk 0:00:54.5]} 28... Bxc6 {[%clk 0:00:02.3]} 29.
dxc6+ {[%clk 0:00:54.2]} 29... Kh8 {[%clk 0:00:02.6]} 30. Rea1 {[%clk
0:00:29.7]} 30... Rdxc6 {[%clk 0:00:02.4]} 31. Bxg7+ {[%clk 0:00:27.9]} 31...
Kxg7 {[%clk 0:00:03.3]} 32. Qxb5 {[%clk 0:00:28]} 32... Rc1+ {[%clk 0:00:03.2]}
33. Rxc1 {[%clk 0:00:24.9]} 33... Rxa7 {[%clk 0:00:03.8]} 34. Qf5 {[%clk
0:00:17.8]} 34... Qf6 {[%clk 0:00:03.7]} 35. Qc8 {[%clk 0:00:17.8]} 35... Re7
{[%clk 0:00:03.5]} 36. Qg8+ {[%clk 0:00:17.1]} 36... Kh6 {[%clk 0:00:03.8]} 37.
Bd5 {[%clk 0:00:17.2]} 37... Nf8 {[%clk 0:00:03.8]} 38. Rc6 {[%clk 0:00:16.2]}
38... Ne6 {[%clk 0:00:03.8]} 39. Rxe6 {[%clk 0:00:15.9]} 1-0

[Event "Early-Titled-Tuesday-Blitz-March-19-2024"]
[Site "Chess.com"]
[Date "2024.03.19"]
[Round "11"]
[White "Jahonas"]
[Black "Willhaven3"]
[Result "1-0"]
[WhiteElo "2366"]
[BlackElo "2507"]
[TimeControl "180+1"]
[EndTime "10:06:26 PDT"]
[Termination "Jahonas won by resignation"]

1. d4 {[%clk 0:03:00.9]} 1... d5 {[%clk 0:02:59.1]} 2. Nf3 {[%clk 0:03:01.3]}
2... Nc6 {[%clk 0:02:58.4]} 3. c3 {[%clk 0:03:01.6]} 3... Bg4 {[%clk 0:02:58.6]}
4. Bf4 {[%clk 0:03:01.5]} 4... e6 {[%clk 0:02:58.8]} 5. Nbd2 {[%clk 0:03:01.4]}
5... Bd6 {[%clk 0:02:59.1]} 6. Bg3 {[%clk 0:03:01]} 6... Nge7 {[%clk 0:02:59]}
7. e4 {[%clk 0:02:59.7]} 7... dxe4 {[%clk 0:02:56.4]} 8. Nxe4 {[%clk 0:02:59.1]}
8... Bxg3 {[%clk 0:02:52.1]} 9. hxg3 {[%clk 0:02:57.6]} 9... O-O {[%clk
0:02:46.7]} 10. Bd3 {[%clk 0:02:56.7]} 10... h6 {[%clk 0:02:45.8]} 11. Qc2
{[%clk 0:02:52.2]} 11... Qd5 {[%clk 0:02:35.7]} 12. O-O {[%clk 0:02:48.1]} 12...
e5 {[%clk 0:02:34.2]} 13. Nxe5 {[%clk 0:02:39]} 13... Nxe5 {[%clk 0:02:33.3]}
14. dxe5 {[%clk 0:02:38.6]} 14... Qxe5 {[%clk 0:02:32.7]} 15. Rfe1 {[%clk
0:02:36.9]} 15... Nc6 {[%clk 0:02:24.5]} 16. Nd2 {[%clk 0:02:20.6]} 16... Qh5
{[%clk 0:02:16.3]} 17. Nf1 {[%clk 0:02:17.5]} 17... Rad8 {[%clk 0:02:14.5]} 18.
Be4 {[%clk 0:02:16]} 18... Rd6 {[%clk 0:02:13.3]} 19. Qb3 {[%clk 0:02:11.8]}
19... b6 {[%clk 0:02:08.3]} 20. Ne3 {[%clk 0:02:09.8]} 20... Be6 {[%clk
0:02:06.7]} 21. Qa4 {[%clk 0:02:00.9]} 21... Bd7 {[%clk 0:02:04.9]} 22. Bxc6
{[%clk 0:01:58.1]} 22... Bxc6 {[%clk 0:02:04.1]} 23. Qxa7 {[%clk 0:01:56.6]}
23... Rd7 {[%clk 0:01:55.8]} 24. Qa6 {[%clk 0:01:38.3]} 24... Rfd8 {[%clk
0:01:55]} 25. Qe2 {[%clk 0:01:36.5]} 25... Qa5 {[%clk 0:01:52.9]} 26. Nc4 {[%clk
0:01:22.3]} 26... Qc5 {[%clk 0:01:50]} 27. a4 {[%clk 0:01:05.5]} 27... Rd3
{[%clk 0:01:28.7]} 28. Ne5 {[%clk 0:01:02.6]} 28... Rd2 {[%clk 0:01:08.2]} 29.
Qe3 {[%clk 0:01:02.7]} 29... Qxe3 {[%clk 0:00:53.6]} 30. Rxe3 {[%clk 0:01:03.6]}
30... Rd1+ {[%clk 0:00:48.8]} 31. Re1 {[%clk 0:00:59.8]} 31... Rxe1+ {[%clk
0:00:47]} 32. Rxe1 {[%clk 0:00:59.1]} 32... Bxa4 {[%clk 0:00:47.6]} 33. Nf3
{[%clk 0:00:55.9]} 33... Kf8 {[%clk 0:00:45.9]} 34. Nd4 {[%clk 0:00:53.6]} 34...
c5 {[%clk 0:00:44]} 35. Nf3 {[%clk 0:00:52.2]} 35... Bb5 {[%clk 0:00:34]} 36.
Ra1 {[%clk 0:00:48.4]} 36... Rd7 {[%clk 0:00:26]} 37. g4 {[%clk 0:00:47.3]}
37... Ke7 {[%clk 0:00:26]} 38. Kh2 {[%clk 0:00:46.8]} 38... Kd8 {[%clk
0:00:24.1]} 39. Kg3 {[%clk 0:00:46.8]} 39... Kc7 {[%clk 0:00:24.4]} 40. Ra7+
{[%clk 0:00:45.9]} 40... Kc6 {[%clk 0:00:23.6]} 41. Ne5+ {[%clk 0:00:44.9]}
41... Kd6 {[%clk 0:00:22.4]} 42. Nxd7 {[%clk 0:00:44.7]} 42... Bxd7 {[%clk
0:00:23.2]} 43. Kf4 {[%clk 0:00:44.2]} 43... g5+ {[%clk 0:00:20.3]} 44. Kg3
{[%clk 0:00:44.4]} 44... Be6 {[%clk 0:00:18.8]} 45. f4 {[%clk 0:00:44.2]} 45...
Kd5 {[%clk 0:00:17.5]} 46. f5 {[%clk 0:00:43.6]} 46... Bc8 {[%clk 0:00:16]} 47.
Rxf7 {[%clk 0:00:43.6]} 47... Kc4 {[%clk 0:00:15.2]} 48. Rf6 {[%clk 0:00:43.6]}
48... Kb3 {[%clk 0:00:14.8]} 49. Rxb6+ {[%clk 0:00:43.3]} 49... Kc2 {[%clk
0:00:15]} 50. Rc6 {[%clk 0:00:43.5]} 50... Bb7 {[%clk 0:00:14.6]} 51. Rxc5
{[%clk 0:00:43.7]} 51... Kxb2 {[%clk 0:00:14.2]} 52. f6 {[%clk 0:00:44]} 1-0

[Event "Early-Titled-Tuesday-Blitz-March-19-2024"]
[Site "Chess.com"]
[Date "2024.03.19"]
[Round "11"]
[White "Tol_Tol"]
[Black "MuhittinBuker"]
[Result "1-0"]
[WhiteElo "2309"]
[BlackElo "2126"]
[TimeControl "180+1"]
[EndTime "10:06:27 PDT"]
[Termination "Tol_Tol won by resignation"]

1. d4 {[%clk 0:03:00.9]} 1... Nf6 {[%clk 0:02:59.3]} 2. c4 {[%clk 0:03:01.1]}
2... e6 {[%clk 0:02:59]} 3. Nc3 {[%clk 0:03:01.5]} 3... Bb4 {[%clk 0:02:57.1]}
4. e3 {[%clk 0:03:01.4]} 4... O-O {[%clk 0:02:56.2]} 5. Bd3 {[%clk 0:03:00.9]}
5... b6 {[%clk 0:02:55]} 6. Nf3 {[%clk 0:03:01.3]} 6... Bb7 {[%clk 0:02:55.3]}
7. O-O {[%clk 0:03:00.6]} 7... d6 {[%clk 0:02:55.8]} 8. Qd2 {[%clk 0:02:57.3]}
8... Nbd7 {[%clk 0:02:54.7]} 9. a3 {[%clk 0:02:57.1]} 9... Bxc3 {[%clk
0:02:54.5]} 10. Qxc3 {[%clk 0:02:57.5]} 10... Qe7 {[%clk 0:02:51.1]} 11. Nd2
{[%clk 0:02:57.3]} 11... e5 {[%clk 0:02:50.9]} 12. d5 {[%clk 0:02:56.8]} 12...
e4 {[%clk 0:02:49.8]} 13. Bc2 {[%clk 0:02:56.8]} 13... a5 {[%clk 0:02:44.8]} 14.
b3 {[%clk 0:02:56.9]} 14... Nc5 {[%clk 0:02:30.1]} 15. Bb2 {[%clk 0:02:56.4]}
15... Bc8 {[%clk 0:02:03.9]} 16. b4 {[%clk 0:02:52.4]} 16... axb4 {[%clk
0:02:03.3]} 17. axb4 {[%clk 0:02:52.7]} 17... Rxa1 {[%clk 0:02:03.7]} 18. Rxa1
{[%clk 0:02:51.5]} 18... Nd3 {[%clk 0:02:01.6]} 19. Bxd3 {[%clk 0:02:45.5]}
19... exd3 {[%clk 0:02:01.4]} 20. Qxd3 {[%clk 0:02:44.2]} 20... Ng4 {[%clk
0:01:58.4]} 21. h3 {[%clk 0:02:33.9]} 21... Ne5 {[%clk 0:01:57.7]} 22. Qc3
{[%clk 0:02:34.4]} 22... f6 {[%clk 0:01:31.2]} 23. Nb3 {[%clk 0:02:15.4]} 23...
Bf5 {[%clk 0:01:29.2]} 24. Nd4 {[%clk 0:02:14.5]} 24... Bd7 {[%clk 0:01:28.3]}
25. Ra7 {[%clk 0:02:08.1]} 25... Rc8 {[%clk 0:01:27.7]} 26. f4 {[%clk
0:01:48.6]} 26... Ng6 {[%clk 0:01:25]} 27. f5 {[%clk 0:01:46.7]} 27... Ne5
{[%clk 0:01:23.5]} 28. Ne6 {[%clk 0:01:46.2]} 28... Bxe6 {[%clk 0:01:21.9]} 29.
fxe6 {[%clk 0:01:45.4]} 29... Qe8 {[%clk 0:01:21.7]} 30. Qc2 {[%clk 0:01:24.5]}
30... Qh5 {[%clk 0:01:16.9]} 31. Bxe5 {[%clk 0:01:17.6]} 31... Qxe5 {[%clk
0:01:07.5]} 32. Qd3 {[%clk 0:01:14.5]} 32... f5 {[%clk 0:00:58.2]} 33. b5 {[%clk
0:01:13.6]} 33... f4 {[%clk 0:00:49.5]} 34. Qd4 {[%clk 0:01:03.2]} 34... Qxd4
{[%clk 0:00:30]} 35. exd4 {[%clk 0:01:03]} 35... Kf8 {[%clk 0:00:29.5]} 36. h4
{[%clk 0:01:02.3]} 36... Ke7 {[%clk 0:00:29.4]} 37. Kf2 {[%clk 0:01:02.7]} 37...
Kf6 {[%clk 0:00:25.4]} 38. Kf3 {[%clk 0:01:00.5]} 38... Kf5 {[%clk 0:00:25.5]}
39. e7 {[%clk 0:00:56.4]} 39... Kf6 {[%clk 0:00:20.9]} 40. Rxc7 {[%clk
0:00:55.9]} 40... Re8 {[%clk 0:00:19.7]} 41. Kxf4 {[%clk 0:00:55.9]} 41... Rxe7
{[%clk 0:00:19.1]} 42. Rxe7 {[%clk 0:00:55.6]} 42... Kxe7 {[%clk 0:00:19.2]} 43.
Kf5 {[%clk 0:00:54.8]} 43... Kf7 {[%clk 0:00:17.1]} 44. h5 {[%clk 0:00:54.6]}
44... Ke7 {[%clk 0:00:14]} 45. g4 {[%clk 0:00:54.4]} 45... Kf7 {[%clk 0:00:14]}
46. g5 {[%clk 0:00:54.7]} 46... Ke7 {[%clk 0:00:14.2]} 47. c5 {[%clk 0:00:46.6]}
47... dxc5 {[%clk 0:00:13.2]} 48. dxc5 {[%clk 0:00:47.1]} 48... bxc5 {[%clk
0:00:13.6]} 49. b6 {[%clk 0:00:47.6]} 49... Kd7 {[%clk 0:00:13.2]} 50. Ke5
{[%clk 0:00:45.4]} 50... Kc8 {[%clk 0:00:09.2]} 51. d6 {[%clk 0:00:44.8]} 51...
Kd7 {[%clk 0:00:09.4]} 52. b7 {[%clk 0:00:44.7]} 1-0

[Event "Early-Titled-Tuesday-Blitz-March-19-2024"]
[Site "Chess.com"]
[Date "2024.03.19"]
[Round "11"]
[White "esrosenberg"]
[Black "Szachulec75"]
[Result "1-0"]
[WhiteElo "2464"]
[BlackElo "2238"]
[TimeControl "180+1"]
[EndTime "10:06:29 PDT"]
[Termination "esrosenberg won on time"]

1. d4 {[%clk 0:03:00.1]} 1... Nf6 {[%clk 0:02:58.5]} 2. Nf3 {[%clk 0:03:00.8]}
2... d6 {[%clk 0:02:58.3]} 3. Nc3 {[%clk 0:02:55.3]} 3... c6 {[%clk 0:02:53.2]}
4. e4 {[%clk 0:02:55.3]} 4... Bg4 {[%clk 0:02:52.6]} 5. Be2 {[%clk 0:02:53.5]}
5... Nbd7 {[%clk 0:02:48.9]} 6. O-O {[%clk 0:02:52.8]} 6... e5 {[%clk
0:02:49.5]} 7. Be3 {[%clk 0:02:51.8]} 7... Be7 {[%clk 0:02:48.3]} 8. h3 {[%clk
0:02:51.6]} 8... Bh5 {[%clk 0:02:45.9]} 9. a4 {[%clk 0:02:49.8]} 9... a5 {[%clk
0:02:43]} 10. Re1 {[%clk 0:02:42.2]} 10... O-O {[%clk 0:02:43.2]} 11. d5 {[%clk
0:02:31.3]} 11... Qc7 {[%clk 0:02:40]} 12. Nd2 {[%clk 0:01:57.9]} 12... Bxe2
{[%clk 0:02:32.4]} 13. Qxe2 {[%clk 0:01:58.8]} 13... Nb6 {[%clk 0:02:31.7]} 14.
Nc4 {[%clk 0:01:49.1]} 14... Nfd7 {[%clk 0:02:08.8]} 15. Nxb6 {[%clk 0:01:35.6]}
15... Nxb6 {[%clk 0:02:07.4]} 16. Rad1 {[%clk 0:01:28.4]} 16... Rfd8 {[%clk
0:01:59.6]} 17. b3 {[%clk 0:01:22]} 17... c5 {[%clk 0:01:53.3]} 18. Qg4 {[%clk
0:01:09.5]} 18... Qc8 {[%clk 0:01:47.9]} 19. Qg3 {[%clk 0:01:05.2]} 19... Nd7
{[%clk 0:01:35.2]} 20. f4 {[%clk 0:00:55.9]} 20... Bf6 {[%clk 0:01:29.4]} 21.
Nb5 {[%clk 0:00:53.5]} 21... Nf8 {[%clk 0:01:22.2]} 22. fxe5 {[%clk 0:00:45.4]}
22... Bxe5 {[%clk 0:01:20]} 23. Bf4 {[%clk 0:00:46]} 23... Ng6 {[%clk
0:01:15.6]} 24. Bxe5 {[%clk 0:00:46.2]} 24... Nxe5 {[%clk 0:01:13.5]} 25. c4
{[%clk 0:00:42.7]} 25... Qd7 {[%clk 0:00:54.7]} 26. Rf1 {[%clk 0:00:40.8]} 26...
Rf8 {[%clk 0:00:52.5]} 27. Rf5 {[%clk 0:00:39.5]} 27... Rae8 {[%clk 0:00:50.8]}
28. Rdf1 {[%clk 0:00:35.9]} 28... Kh8 {[%clk 0:00:36.2]} 29. h4 {[%clk
0:00:31.5]} 29... Qe7 {[%clk 0:00:19.2]} 30. h5 {[%clk 0:00:28.8]} 30... Rd8
{[%clk 0:00:19.6]} 31. h6 {[%clk 0:00:27.9]} 31... g6 {[%clk 0:00:18.9]} 32. Rf6
{[%clk 0:00:25.4]} 32... Rd7 {[%clk 0:00:15.7]} 33. Qg5 {[%clk 0:00:16.9]} 33...
Re8 {[%clk 0:00:13.7]} 34. Qg3 {[%clk 0:00:13.9]} 34... Qf8 {[%clk 0:00:13.4]}
35. R1f2 {[%clk 0:00:09.5]} 35... Qxh6 {[%clk 0:00:11.3]} 36. Nxd6 {[%clk
0:00:09.8]} 36... Qc1+ {[%clk 0:00:06.2]} 37. Rf1 {[%clk 0:00:09.1]} 1-0

[Event "Early-Titled-Tuesday-Blitz-March-19-2024"]
[Site "Chess.com"]
[Date "2024.03.19"]
[Round "11"]
[White "Jospem"]
[Black "moro182"]
[Result "0-1"]
[WhiteElo "3057"]
[BlackElo "2903"]
[TimeControl "180+1"]
[EndTime "10:06:30 PDT"]
[Termination "moro182 won by resignation"]

1. e4 {[%clk 0:03:00.9]} 1... g6 {[%clk 0:03:00.9]} 2. d4 {[%clk 0:03:00.9]}
2... Bg7 {[%clk 0:03:01.8]} 3. c3 {[%clk 0:03:01.6]} 3... d6 {[%clk 0:03:02.2]}
4. Bd3 {[%clk 0:03:02.2]} 4... Nf6 {[%clk 0:03:02.7]} 5. Nf3 {[%clk 0:03:03]}
5... O-O {[%clk 0:03:03.3]} 6. O-O {[%clk 0:03:03.8]} 6... Nc6 {[%clk
0:03:03.7]} 7. h3 {[%clk 0:03:03.5]} 7... e5 {[%clk 0:03:04.1]} 8. Re1 {[%clk
0:03:04.2]} 8... h6 {[%clk 0:03:04]} 9. Nbd2 {[%clk 0:03:04.3]} 9... Nh5 {[%clk
0:03:04.2]} 10. Nb3 {[%clk 0:02:59]} 10... Qf6 {[%clk 0:03:00.1]} 11. Be3 {[%clk
0:02:56]} 11... Nf4 {[%clk 0:02:57.9]} 12. Bf1 {[%clk 0:02:55.2]} 12... g5
{[%clk 0:02:55.6]} 13. Nbd2 {[%clk 0:02:46.6]} 13... g4 {[%clk 0:02:53.7]} 14.
hxg4 {[%clk 0:02:43.2]} 14... Bxg4 {[%clk 0:02:54.6]} 15. g3 {[%clk 0:02:34.5]}
15... Nh3+ {[%clk 0:02:43.6]} 16. Kh2 {[%clk 0:02:31.6]} 16... Ng5 {[%clk
0:02:18.1]} 17. Be2 {[%clk 0:02:25.8]} 17... exd4 {[%clk 0:02:11.7]} 18. Nxd4
{[%clk 0:02:19.3]} 18... Bxe2 {[%clk 0:02:06.8]} 19. Qxe2 {[%clk 0:02:20.2]}
19... Nxd4 {[%clk 0:02:06.2]} 20. Bxd4 {[%clk 0:02:03.8]} 20... Qe6 {[%clk
0:02:04.3]} 21. Qh5 {[%clk 0:02:02.2]} 21... Qg6 {[%clk 0:01:55]} 22. Qxg6
{[%clk 0:01:55.4]} 22... fxg6 {[%clk 0:01:55.9]} 23. f4 {[%clk 0:01:56.1]} 23...
Ne6 {[%clk 0:01:55.6]} 24. Bxg7 {[%clk 0:01:49.8]} 24... Kxg7 {[%clk 0:01:56.5]}
25. Re3 {[%clk 0:01:47.9]} 25... Rae8 {[%clk 0:01:55.3]} 26. Rae1 {[%clk
0:01:44.9]} 26... Nc5 {[%clk 0:01:46.9]} 27. Nf3 {[%clk 0:01:38.2]} 27... Re7
{[%clk 0:01:41.2]} 28. e5 {[%clk 0:01:33.9]} 28... Rfe8 {[%clk 0:01:40.3]} 29.
g4 {[%clk 0:01:19.7]} 29... dxe5 {[%clk 0:01:35.6]} 30. fxe5 {[%clk 0:01:20.6]}
30... Rd8 {[%clk 0:01:27.6]} 31. e6 {[%clk 0:01:10.9]} 31... Rd3 {[%clk
0:01:09.3]} 32. Nd4 {[%clk 0:01:02.6]} 32... Rxe3 {[%clk 0:01:08.9]} 33. Rxe3
{[%clk 0:01:03.5]} 33... Kf6 {[%clk 0:01:05.6]} 34. Rf3+ {[%clk 0:01:03.9]}
34... Kg7 {[%clk 0:01:01.9]} 35. Re3 {[%clk 0:01:04]} 35... Kf6 {[%clk
0:00:56.2]} 36. Rf3+ {[%clk 0:00:46.3]} 36... Kg7 {[%clk 0:00:49.6]} 37. Kg3
{[%clk 0:00:30.7]} 37... Nxe6 {[%clk 0:00:48.1]} 38. Re3 {[%clk 0:00:31.3]}
38... Kf7 {[%clk 0:00:48]} 39. Rf3+ {[%clk 0:00:29.9]} 39... Kg7 {[%clk
0:00:45.8]} 40. Re3 {[%clk 0:00:30.1]} 40... Kf7 {[%clk 0:00:44.6]} 41. Nb3
{[%clk 0:00:22.2]} 41... Ng5 {[%clk 0:00:43.4]} 42. Rd3 {[%clk 0:00:22.8]} 42...
b6 {[%clk 0:00:42.2]} 43. Nd4 {[%clk 0:00:21.2]} 43... c5 {[%clk 0:00:41.2]} 44.
Nb5 {[%clk 0:00:21.6]} 44... Re2 {[%clk 0:00:38]} 45. Rd7+ {[%clk 0:00:17.8]}
45... Ke6 {[%clk 0:00:36.8]} 46. Rd6+ {[%clk 0:00:18.3]} 46... Ke5 {[%clk
0:00:36.3]} 47. Rxg6 {[%clk 0:00:17.9]} 47... Ne4+ {[%clk 0:00:36.5]} 48. Kf3
{[%clk 0:00:16.7]} 48... Rxb2 {[%clk 0:00:33.8]} 49. Rxh6 {[%clk 0:00:15.9]}
49... Ng5+ {[%clk 0:00:32.5]} 50. Ke3 {[%clk 0:00:15]} 50... Rxb5 {[%clk
0:00:33.1]} 51. Rh5 {[%clk 0:00:15.6]} 51... Kf6 {[%clk 0:00:33.4]} 52. a4
{[%clk 0:00:16.1]} 52... Ra5 {[%clk 0:00:32.1]} 53. Kf4 {[%clk 0:00:17]} 53...
Rxa4+ {[%clk 0:00:31.8]} 0-1

[Event "Early-Titled-Tuesday-Blitz-March-19-2024"]
[Site "Chess.com"]
[Date "2024.03.19"]
[Round "11"]
[White "BestestBP"]
[Black "IsaqueGoncalvesSanto"]
[Result "1-0"]
[WhiteElo "2225"]
[BlackElo "1880"]
[TimeControl "180+1"]
[EndTime "10:06:31 PDT"]
[Termination "BestestBP won on time"]

1. e4 {[%clk 0:02:54.4]} 1... e6 {[%clk 0:02:59.5]} 2. e5 {[%clk 0:02:50.3]}
2... d5 {[%clk 0:02:59.1]} 3. exd6 {[%clk 0:02:50.7]} 3... Bxd6 {[%clk
0:02:58.1]} 4. d4 {[%clk 0:02:51.2]} 4... Nf6 {[%clk 0:02:57.9]} 5. Nf3 {[%clk
0:02:47.4]} 5... O-O {[%clk 0:02:57.3]} 6. Bg5 {[%clk 0:02:45.5]} 6... Nbd7
{[%clk 0:02:48.7]} 7. Bd3 {[%clk 0:02:40.7]} 7... c6 {[%clk 0:02:48.6]} 8. O-O
{[%clk 0:02:33.6]} 8... Qb6 {[%clk 0:02:45.8]} 9. b3 {[%clk 0:02:25.4]} 9... h6
{[%clk 0:02:42.4]} 10. Bh4 {[%clk 0:02:14.6]} 10... c5 {[%clk 0:02:24.7]} 11.
Na3 {[%clk 0:02:06.2]} 11... Qa5 {[%clk 0:01:42.6]} 12. Nc4 {[%clk 0:02:04.5]}
12... Qc7 {[%clk 0:01:42.1]} 13. Nxd6 {[%clk 0:02:01.5]} 13... Qxd6 {[%clk
0:01:42.2]} 14. Bg3 {[%clk 0:02:01.4]} 14... Qe7 {[%clk 0:01:41.5]} 15. c4
{[%clk 0:01:56.8]} 15... cxd4 {[%clk 0:01:38.6]} 16. Nxd4 {[%clk 0:01:56.1]}
16... Nc5 {[%clk 0:01:38.4]} 17. Bc2 {[%clk 0:01:55.8]} 17... Rd8 {[%clk
0:01:37.1]} 18. Be5 {[%clk 0:01:34.4]} 18... Ncd7 {[%clk 0:01:34.1]} 19. Bc7
{[%clk 0:01:30]} 19... Re8 {[%clk 0:01:30.7]} 20. Nb5 {[%clk 0:01:24.8]} 20...
a6 {[%clk 0:01:17.8]} 21. Nd6 {[%clk 0:01:23]} 21... Rf8 {[%clk 0:01:09.5]} 22.
Re1 {[%clk 0:01:13.8]} 22... Ne8 {[%clk 0:01:00.9]} 23. Nxc8 {[%clk 0:01:01.9]}
23... Rxc8 {[%clk 0:00:57.6]} 24. Bg3 {[%clk 0:01:00]} 24... Ndf6 {[%clk
0:00:54.5]} 25. Qf3 {[%clk 0:00:49.3]} 25... b5 {[%clk 0:00:44.6]} 26. Bd3
{[%clk 0:00:37.9]} 26... bxc4 {[%clk 0:00:32.9]} 27. Bxc4 {[%clk 0:00:34.5]}
27... Qa7 {[%clk 0:00:30.8]} 28. Rad1 {[%clk 0:00:30.7]} 28... a5 {[%clk
0:00:28.6]} 29. Be5 {[%clk 0:00:17.7]} 29... a4 {[%clk 0:00:26.6]} 30. Bd4
{[%clk 0:00:16.7]} 30... Qa8 {[%clk 0:00:23.5]} 31. Qxa8 {[%clk 0:00:15.1]}
31... Rxa8 {[%clk 0:00:22.9]} 32. Bc5 {[%clk 0:00:15.6]} 32... axb3 {[%clk
0:00:18.4]} 33. axb3 {[%clk 0:00:15.6]} 33... Nc7 {[%clk 0:00:09.3]} 34. Bxf8
{[%clk 0:00:15.8]} 34... Kxf8 {[%clk 0:00:07.6]} 35. Ra1 {[%clk 0:00:16.1]}
35... Rb8 {[%clk 0:00:05.9]} 36. Ra7 {[%clk 0:00:15.5]} 36... Ncd5 {[%clk
0:00:05.7]} 37. h3 {[%clk 0:00:12.9]} 37... g5 {[%clk 0:00:04.8]} 38. Rea1
{[%clk 0:00:13.3]} 38... Kg7 {[%clk 0:00:03.3]} 39. Ra8 {[%clk 0:00:13.2]} 39...
Rb7 {[%clk 0:00:01.7]} 40. R1a7 {[%clk 0:00:13.1]} 40... Rxa7 {[%clk 0:00:01.1]}
41. Rxa7 {[%clk 0:00:13.4]} 1-0